[Event "*** Titled Tuesday Blitz"]
[Site "Chess.com"]
[Date "2021.03.02"]
[Round "5"]
[White "ruvat"]
[Black "shnitez"]
[Result "1/2-1/2"]
[WhiteElo "2333"]
[BlackElo "2509"]
[TimeControl "180+1"]
[EndTime "10:56:35 PST"]
[Termination "Game drawn - timeout vs insufficient material"]

1. d4 {[%clk 0:03:00.9]} 1... Nf6 {[%clk 0:02:56.1]} 2. c4 {[%clk 0:03:00.8]}
2... e6 {[%clk 0:02:55.7]} 3. g3 {[%clk 0:03:00.5]} 3... c5 {[%clk 0:02:54.8]}
4. d5 {[%clk 0:02:59.9]} 4... exd5 {[%clk 0:02:55.7]} 5. cxd5 {[%clk 0:03:00.1]}
5... b5 {[%clk 0:02:56.3]} 6. Nf3 {[%clk 0:02:58.8]} 6... d6 {[%clk 0:02:54.8]}
7. e4 {[%clk 0:02:58.6]} 7... Nxe4 {[%clk 0:02:54.6]} 8. Bxb5+ {[%clk
0:02:57.5]} 8... Bd7 {[%clk 0:02:45.6]} 9. Bxd7+ {[%clk 0:02:55.1]} 9... Nxd7
{[%clk 0:02:40.8]} 10. O-O {[%clk 0:02:50.2]} 10... Be7 {[%clk 0:02:39.6]} 11.
Re1 {[%clk 0:02:49.5]} 11... Nef6 {[%clk 0:02:34.4]} 12. Nc3 {[%clk 0:02:41]}
12... O-O {[%clk 0:02:33.5]} 13. Nd2 {[%clk 0:02:18]} 13... Ne5 {[%clk
0:02:23.1]} 14. Nde4 {[%clk 0:02:17.2]} 14... Nxe4 {[%clk 0:01:54]} 15. Nxe4
{[%clk 0:02:16.5]} 15... f5 {[%clk 0:01:39.2]} 16. Nc3 {[%clk 0:02:16.2]} 16...
c4 {[%clk 0:01:28.5]} 17. Be3 {[%clk 0:02:13.3]} 17... Nd3 {[%clk 0:01:20.8]}
18. Re2 {[%clk 0:02:13.1]} 18... f4 {[%clk 0:01:15.7]} 19. Bd4 {[%clk
0:02:13.2]} 19... Bf6 {[%clk 0:01:09]} 20. Bxf6 {[%clk 0:02:07.7]} 20... Qxf6
{[%clk 0:01:09.9]} 21. Ne4 {[%clk 0:01:37.8]} 21... Qd4 {[%clk 0:00:40.9]} 22.
Nxd6 {[%clk 0:01:26.5]} 22... Qxd5 {[%clk 0:00:38.5]} 23. Ne4 {[%clk 0:01:19.9]}
23... Rae8 {[%clk 0:00:30.6]} 24. Nc3 {[%clk 0:01:12.6]} 24... Qf3 {[%clk
0:00:28.9]} 25. Qd2 {[%clk 0:00:55.8]} 25... Rxe2 {[%clk 0:00:18.5]} 26. Qxe2
{[%clk 0:00:54.8]} 26... Qxe2 {[%clk 0:00:18.4]} 27. Nxe2 {[%clk 0:00:54.8]}
27... fxg3 {[%clk 0:00:19.3]} 28. fxg3 {[%clk 0:00:53.9]} 28... Nxb2 {[%clk
0:00:17.6]} 29. Rc1 {[%clk 0:00:49.2]} 29... Rc8 {[%clk 0:00:14.7]} 30. Nc3
{[%clk 0:00:46.1]} 30... Nd3 {[%clk 0:00:12.8]} 31. Rf1 {[%clk 0:00:44.7]} 31...
Rb8 {[%clk 0:00:09.3]} 32. Rf5 {[%clk 0:00:41.3]} 32... h6 {[%clk 0:00:06.2]}
33. Ra5 {[%clk 0:00:39.1]} 33... Rb7 {[%clk 0:00:06.1]} 34. Ra6 {[%clk
0:00:39.1]} 34... Re7 {[%clk 0:00:05.2]} 35. Rc6 {[%clk 0:00:36.5]} 35... Ne5
{[%clk 0:00:04.8]} 36. Rc5 {[%clk 0:00:33]} 36... g5 {[%clk 0:00:02.7]} 37. h3
{[%clk 0:00:29.8]} 37... h5 {[%clk 0:00:02.4]} 38. g4 {[%clk 0:00:27.7]} 38...
hxg4 {[%clk 0:00:02.3]} 39. hxg4 {[%clk 0:00:27.8]} 39... Kf7 {[%clk 0:00:02.6]}
40. Kg2 {[%clk 0:00:27.3]} 40... Nd3 {[%clk 0:00:02.5]} 41. Rxg5 {[%clk
0:00:19.3]} 41... Nf4+ {[%clk 0:00:02.9]} 42. Kg3 {[%clk 0:00:17.4]} 42... Ne6
{[%clk 0:00:03.8]} 43. Rf5+ {[%clk 0:00:16.2]} 43... Kg6 {[%clk 0:00:04.2]} 44.
Re5 {[%clk 0:00:15.6]} 44... Kf6 {[%clk 0:00:03.9]} 45. Re3 {[%clk 0:00:15.1]}
45... Rd7 {[%clk 0:00:02.9]} 46. Ne4+ {[%clk 0:00:13.8]} 46... Kf7 {[%clk
0:00:02.6]} 47. g5 {[%clk 0:00:13.2]} 47... Nd4 {[%clk 0:00:02.3]} 48. Kf4
{[%clk 0:00:10.4]} 48... Ne6+ {[%clk 0:00:01.8]} 49. Ke5 {[%clk 0:00:09.3]}
49... Nd4 {[%clk 0:00:02.7]} 50. Nd6+ {[%clk 0:00:07.6]} 50... Rxd6 {[%clk
0:00:01.9]} 51. Kxd6 {[%clk 0:00:03.9]} 51... Nf5+ {[%clk 0:00:02.1]} 52. Ke5
{[%clk 0:00:03.7]} 52... Nxe3 {[%clk 0:00:03]} 53. Kd4 {[%clk 0:00:03.8]} 53...
Nc2+ {[%clk 0:00:02.7]} 54. Kxc4 {[%clk 0:00:03.1]} 54... Ke6 {[%clk 0:00:03.2]}
55. Kb5 {[%clk 0:00:03]} 55... Kd7 {[%clk 0:00:03.4]} 56. Ka6 {[%clk 0:00:02.8]}
56... Kc7 {[%clk 0:00:03.5]} 57. Kxa7 {[%clk 0:00:03.1]} 57... Nd4 {[%clk
0:00:02.9]} 58. g6 {[%clk 0:00:02.9]} 58... Ne6 {[%clk 0:00:03]} 59. a4 {[%clk
0:00:02.1]} 59... Ng7 {[%clk 0:00:03.9]} 60. Ka6 {[%clk 0:00:02]} 60... Kc8
{[%clk 0:00:04.8]} 61. Kb6 {[%clk 0:00:02]} 61... Kb8 {[%clk 0:00:04.6]} 62. Kc6
{[%clk 0:00:01.8]} 62... Ka7 {[%clk 0:00:04.9]} 63. Kd6 {[%clk 0:00:02.1]} 63...
Ka6 {[%clk 0:00:05.3]} 64. Ke7 {[%clk 0:00:02.2]} 64... Ka5 {[%clk 0:00:05.2]}
65. Kf6 {[%clk 0:00:02.2]} 65... Nh5+ {[%clk 0:00:04.3]} 66. Kf7 {[%clk
0:00:01.4]} 66... Kxa4 {[%clk 0:00:04.1]} 1/2-1/2

[Event "*** Titled Tuesday Blitz"]
[Site "Chess.com"]
[Date "2021.03.02"]
[Round "5"]
[White "exoticprincess"]
[Black "13MiRacLe"]
[Result "0-1"]
[WhiteElo "2981"]
[BlackElo "2745"]
[TimeControl "180+1"]
[EndTime "10:56:36 PST"]
[Termination "13MiRacLe won on time"]

1. d4 {[%clk 0:03:00.9]} 1... Nf6 {[%clk 0:02:58.6]} 2. Nc3 {[%clk 0:03:00.9]}
2... d5 {[%clk 0:02:59.2]} 3. Bf4 {[%clk 0:02:59.3]} 3... g6 {[%clk 0:02:59]} 4.
Qd2 {[%clk 0:02:58.9]} 4... Bg7 {[%clk 0:02:56.3]} 5. Bh6 {[%clk 0:02:57.7]}
5... Bxh6 {[%clk 0:02:56.8]} 6. Qxh6 {[%clk 0:02:58.5]} 6... Bf5 {[%clk
0:02:57.4]} 7. Qd2 {[%clk 0:02:58.1]} 7... c5 {[%clk 0:02:53.6]} 8. e3 {[%clk
0:02:57.7]} 8... cxd4 {[%clk 0:02:52.1]} 9. exd4 {[%clk 0:02:57.5]} 9... Nc6
{[%clk 0:02:52.7]} 10. Bb5 {[%clk 0:02:57.5]} 10... Rc8 {[%clk 0:02:51.9]} 11.
Nge2 {[%clk 0:02:56.6]} 11... O-O {[%clk 0:02:48.9]} 12. Bxc6 {[%clk 0:02:56.3]}
12... Rxc6 {[%clk 0:02:45.6]} 13. f3 {[%clk 0:02:56.2]} 13... Bc8 {[%clk
0:02:18.1]} 14. O-O {[%clk 0:02:54.2]} 14... Qb6 {[%clk 0:02:07]} 15. a4 {[%clk
0:02:46.1]} 15... a5 {[%clk 0:01:54]} 16. Nb5 {[%clk 0:02:43.5]} 16... e5 {[%clk
0:01:48.6]} 17. Rae1 {[%clk 0:02:32.1]} 17... Bd7 {[%clk 0:01:37.5]} 18. Rf2
{[%clk 0:02:10.6]} 18... e4 {[%clk 0:01:21.2]} 19. Nec3 {[%clk 0:02:08.4]} 19...
Re6 {[%clk 0:01:14]} 20. Rfe2 {[%clk 0:01:47.2]} 20... Bxb5 {[%clk 0:01:08.2]}
21. Nxb5 {[%clk 0:01:48.1]} 21... Rfe8 {[%clk 0:01:07.3]} 22. c3 {[%clk
0:01:45.4]} 22... exf3 {[%clk 0:01:06.3]} 23. gxf3 {[%clk 0:01:46.3]} 23... Nh5
{[%clk 0:01:03]} 24. Kf1 {[%clk 0:01:29.8]} 24... Rxe2 {[%clk 0:00:50.8]} 25.
Rxe2 {[%clk 0:01:30.7]} 25... Rxe2 {[%clk 0:00:50.5]} 26. Qxe2 {[%clk
0:01:31.6]} 26... Qf6 {[%clk 0:00:50.1]} 27. Nc7 {[%clk 0:01:17]} 27... Qh4
{[%clk 0:00:26.5]} 28. Nxd5 {[%clk 0:01:10.5]} 28... Qh3+ {[%clk 0:00:20.2]} 29.
Ke1 {[%clk 0:01:06.6]} 29... Qd7 {[%clk 0:00:11.6]} 30. Qb5 {[%clk 0:00:47.6]}
30... Qe6+ {[%clk 0:00:11.8]} 31. Kf2 {[%clk 0:00:45.6]} 31... Qh3 {[%clk
0:00:10.3]} 32. Qe8+ {[%clk 0:00:45.4]} 32... Kg7 {[%clk 0:00:11]} 33. Qe5+
{[%clk 0:00:46.3]} 33... f6 {[%clk 0:00:11.4]} 34. Qc7+ {[%clk 0:00:41]} 34...
Kh6 {[%clk 0:00:11.8]} 35. Qb8 {[%clk 0:00:23.5]} 35... Qh4+ {[%clk 0:00:11.6]}
36. Ke2 {[%clk 0:00:22.2]} 36... Qh3 {[%clk 0:00:05.6]} 37. Kf2 {[%clk
0:00:14.7]} 37... Qh4+ {[%clk 0:00:05.9]} 38. Ke2 {[%clk 0:00:13.6]} 38... Qh3
{[%clk 0:00:06.3]} 39. Ne3 {[%clk 0:00:09.6]} 39... f5 {[%clk 0:00:04.2]} 40.
Qf8+ {[%clk 0:00:09.2]} 40... Kg5 {[%clk 0:00:04.4]} 41. Qe7+ {[%clk 0:00:09.5]}
41... Kh6 {[%clk 0:00:05.1]} 42. Qc7 {[%clk 0:00:08.2]} 42... f4 {[%clk
0:00:03.8]} 43. Ng4+ {[%clk 0:00:07.8]} 43... Kg5 {[%clk 0:00:04.1]} 44. Qe5+
{[%clk 0:00:07.9]} 44... Kh4 {[%clk 0:00:03.9]} 45. d5 {[%clk 0:00:04.7]} 45...
Qg2+ {[%clk 0:00:03.9]} 46. Nf2 {[%clk 0:00:05.1]} 46... Qxh2 {[%clk 0:00:03.8]}
47. Qd4 {[%clk 0:00:04.7]} 47... Ng3+ {[%clk 0:00:04]} 48. Kd3 {[%clk
0:00:04.6]} 48... Qg1 {[%clk 0:00:03.9]} 49. Qxf4+ {[%clk 0:00:04.1]} 49... Kh5
{[%clk 0:00:04.5]} 50. Qg4+ {[%clk 0:00:01.5]} 50... Kh6 {[%clk 0:00:05]} 51.
Qh4+ {[%clk 0:00:01.9]} 51... Kg7 {[%clk 0:00:05.2]} 52. Qe7+ {[%clk 0:00:02.3]}
52... Kg8 {[%clk 0:00:05.8]} 53. Ng4 {[%clk 0:00:02.3]} 53... Qd1+ {[%clk
0:00:05.4]} 54. Kc4 {[%clk 0:00:02]} 54... Qxa4+ {[%clk 0:00:06.1]} 55. Kc5
{[%clk 0:00:02.3]} 55... b6+ {[%clk 0:00:05.2]} 56. Kd6 {[%clk 0:00:01.8]} 56...
Nf5+ {[%clk 0:00:04.3]} 57. Ke6 {[%clk 0:00:01.6]} 57... Nxe7 {[%clk 0:00:05.2]}
58. d6 {[%clk 0:00:01.1]} 58... Nc8 {[%clk 0:00:03.7]} 59. d7 {[%clk 0:00:01.2]}
59... Qc6+ {[%clk 0:00:03.9]} 60. Ke5 {[%clk 0:00:01.2]} 60... Qc7+ {[%clk
0:00:04]} 0-1

[Event "*** Titled Tuesday Blitz"]
[Site "Chess.com"]
[Date "2021.03.02"]
[Round "5"]
[White "publicaccountcze"]
[Black "Chesswizard_2007"]
[Result "0-1"]
[WhiteElo "2208"]
[BlackElo "2709"]
[TimeControl "180+1"]
[EndTime "10:56:37 PST"]
[Termination "Chesswizard_2007 won on time"]

1. d4 {[%clk 0:03:00.9]} 1... e6 {[%clk 0:02:46.5]} 2. c4 {[%clk 0:03:00.3]}
2... Bb4+ {[%clk 0:02:41.1]} 3. Nc3 {[%clk 0:02:56.7]} 3... c5 {[%clk
0:02:39.5]} 4. dxc5 {[%clk 0:02:54.3]} 4... Nf6 {[%clk 0:02:37.2]} 5. Bd2 {[%clk
0:02:50.4]} 5... Bxc5 {[%clk 0:02:34.4]} 6. e3 {[%clk 0:02:49.3]} 6... O-O
{[%clk 0:02:34.6]} 7. Nf3 {[%clk 0:02:48.8]} 7... d5 {[%clk 0:02:34.9]} 8. cxd5
{[%clk 0:02:47.3]} 8... exd5 {[%clk 0:02:35.8]} 9. Be2 {[%clk 0:02:46]} 9... Nc6
{[%clk 0:02:35.9]} 10. O-O {[%clk 0:02:45.5]} 10... Bg4 {[%clk 0:02:36.1]} 11.
h3 {[%clk 0:02:42.5]} 11... Bh5 {[%clk 0:02:27.3]} 12. Nd4 {[%clk 0:02:40]}
12... Nxd4 {[%clk 0:02:13.8]} 13. Bxh5 {[%clk 0:02:36.7]} 13... Ne6 {[%clk
0:02:12.6]} 14. Bf3 {[%clk 0:02:32.5]} 14... Rc8 {[%clk 0:02:05.8]} 15. b3
{[%clk 0:02:26.1]} 15... d4 {[%clk 0:02:04.2]} 16. exd4 {[%clk 0:02:16.1]} 16...
Bxd4 {[%clk 0:02:04.1]} 17. Rc1 {[%clk 0:02:14.2]} 17... Qe7 {[%clk 0:01:58]}
18. Nd5 {[%clk 0:01:53.8]} 18... Nxd5 {[%clk 0:01:57.1]} 19. Bxd5 {[%clk
0:01:51.6]} 19... Rcd8 {[%clk 0:01:55.3]} 20. Bxe6 {[%clk 0:01:44]} 20... Qxe6
{[%clk 0:01:56.2]} 21. Qf3 {[%clk 0:01:32.3]} 21... h6 {[%clk 0:01:31.8]} 22.
Bb4 {[%clk 0:01:25.3]} 22... Rfe8 {[%clk 0:01:31.2]} 23. Rfe1 {[%clk 0:01:24.7]}
23... Qb6 {[%clk 0:01:26.5]} 24. Rxe8+ {[%clk 0:01:20]} 24... Rxe8 {[%clk
0:01:27.4]} 25. Re1 {[%clk 0:01:14.1]} 25... Rd8 {[%clk 0:01:16.5]} 26. Bc3
{[%clk 0:01:05.2]} 26... Bxc3 {[%clk 0:01:06.6]} 27. Qxc3 {[%clk 0:01:03.6]}
27... Qd6 {[%clk 0:01:05.6]} 28. Qe3 {[%clk 0:00:57.2]} 28... a6 {[%clk
0:01:04.7]} 29. Qe7 {[%clk 0:00:56.3]} 29... Qb6 {[%clk 0:01:02.8]} 30. Qe3
{[%clk 0:00:50.9]} 30... Qa5 {[%clk 0:01:00.9]} 31. Re2 {[%clk 0:00:42.2]} 31...
Qc7 {[%clk 0:00:57.4]} 32. g3 {[%clk 0:00:39.9]} 32... Qc6 {[%clk 0:00:55.5]}
33. Qe4 {[%clk 0:00:39.5]} 33... Qf6 {[%clk 0:00:49.1]} 34. Kg2 {[%clk
0:00:36.4]} 34... g6 {[%clk 0:00:47]} 35. Qxb7 {[%clk 0:00:35.4]} 35... Kg7
{[%clk 0:00:44.2]} 36. Qe7 {[%clk 0:00:34.9]} 36... Qc6+ {[%clk 0:00:43.4]} 37.
Qe4 {[%clk 0:00:33.8]} 37... Qb6 {[%clk 0:00:41]} 38. Qe3 {[%clk 0:00:27.6]}
38... Qb7+ {[%clk 0:00:40.3]} 39. Qe4 {[%clk 0:00:27.1]} 39... Qc8 {[%clk
0:00:39]} 40. Qe5+ {[%clk 0:00:26.2]} 40... Kg8 {[%clk 0:00:38.8]} 41. Re3
{[%clk 0:00:24.1]} 41... Qc6+ {[%clk 0:00:37.8]} 42. Qe4 {[%clk 0:00:23.2]}
42... Qb6 {[%clk 0:00:35]} 43. Rf3 {[%clk 0:00:21.6]} 43... Qd6 {[%clk
0:00:32.4]} 44. Qc4 {[%clk 0:00:19.7]} 44... Rd7 {[%clk 0:00:28]} 45. Qf4 {[%clk
0:00:18.4]} 45... Qf8 {[%clk 0:00:25.2]} 46. Qf6 {[%clk 0:00:16.9]} 46... Rd6
{[%clk 0:00:23.5]} 47. Qf4 {[%clk 0:00:15.2]} 47... Re6 {[%clk 0:00:23.9]} 48.
Re3 {[%clk 0:00:14.5]} 48... Rc6 {[%clk 0:00:21.1]} 49. Rf3 {[%clk 0:00:13.8]}
49... Re6 {[%clk 0:00:17.8]} 50. h4 {[%clk 0:00:13.6]} 50... h5 {[%clk
0:00:17.9]} 51. Re3 {[%clk 0:00:12.2]} 51... Rc6 {[%clk 0:00:18]} 52. Rf3 {[%clk
0:00:11.4]} 52... Re6 {[%clk 0:00:17.6]} 53. Re3 {[%clk 0:00:11.3]} 53... Rb6
{[%clk 0:00:17.8]} 54. Rf3 {[%clk 0:00:11.6]} 54... Rb7 {[%clk 0:00:17.6]} 55.
Re3 {[%clk 0:00:11.6]} 55... Rd7 {[%clk 0:00:18]} 56. Qf6 {[%clk 0:00:11.3]}
56... Qa8+ {[%clk 0:00:18.2]} 57. Rf3 {[%clk 0:00:11]} 57... Qb7 {[%clk
0:00:16.4]} 58. Qf4 {[%clk 0:00:07.5]} 58... Rd3 {[%clk 0:00:15.1]} 59. g4
{[%clk 0:00:03.8]} 59... hxg4 {[%clk 0:00:12.9]} 60. Qxg4 {[%clk 0:00:03.1]}
60... Rd5 {[%clk 0:00:13.6]} 61. h5 {[%clk 0:00:03]} 61... Rxh5 {[%clk
0:00:13.2]} 62. Qg3 {[%clk 0:00:02.5]} 62... Qe7 {[%clk 0:00:13.2]} 63. Kf1
{[%clk 0:00:02.5]} 63... Rg5 {[%clk 0:00:12.9]} 64. Qxg5 {[%clk 0:00:01.5]}
64... Qxg5 {[%clk 0:00:12.9]} 65. Rc3 {[%clk 0:00:01.3]} 65... Qb5+ {[%clk
0:00:12.9]} 0-1

[Event "*** Titled Tuesday Blitz"]
[Site "Chess.com"]
[Date "2021.03.02"]
[Round "5"]
[White "Meri-Arabidze"]
[Black "MalyDominator"]
[Result "0-1"]
[WhiteElo "2627"]
[BlackElo "2499"]
[TimeControl "180+1"]
[EndTime "10:56:40 PST"]
[Termination "MalyDominator won by resignation"]

1. d4 {[%clk 0:03:00.9]} 1... d5 {[%clk 0:02:49.2]} 2. c4 {[%clk 0:03:01.3]}
2... e6 {[%clk 0:02:48]} 3. Nf3 {[%clk 0:03:02.2]} 3... Nf6 {[%clk 0:02:47.6]}
4. Nc3 {[%clk 0:03:02.9]} 4... c5 {[%clk 0:02:47.6]} 5. cxd5 {[%clk 0:03:01.6]}
5... Nxd5 {[%clk 0:02:47.3]} 6. e4 {[%clk 0:03:01.3]} 6... Nxc3 {[%clk
0:02:47.2]} 7. bxc3 {[%clk 0:03:02.2]} 7... cxd4 {[%clk 0:02:46.7]} 8. cxd4
{[%clk 0:03:03.1]} 8... Bb4+ {[%clk 0:02:45.1]} 9. Bd2 {[%clk 0:03:03.5]} 9...
Bxd2+ {[%clk 0:02:45.1]} 10. Qxd2 {[%clk 0:03:04.4]} 10... O-O {[%clk
0:02:45.4]} 11. Bc4 {[%clk 0:03:04.9]} 11... Nd7 {[%clk 0:02:45.6]} 12. O-O
{[%clk 0:03:04.4]} 12... b6 {[%clk 0:02:45.9]} 13. a4 {[%clk 0:02:55.8]} 13...
Bb7 {[%clk 0:02:44.9]} 14. Rfe1 {[%clk 0:02:55.9]} 14... Rc8 {[%clk 0:02:44.1]}
15. Bd3 {[%clk 0:02:50.6]} 15... Re8 {[%clk 0:02:42.3]} 16. a5 {[%clk
0:02:48.4]} 16... Nf6 {[%clk 0:02:09.5]} 17. axb6 {[%clk 0:02:46.5]} 17... axb6
{[%clk 0:02:08.8]} 18. Rab1 {[%clk 0:02:39]} 18... Re7 {[%clk 0:01:33.5]} 19. h3
{[%clk 0:02:38.2]} 19... h6 {[%clk 0:01:33.1]} 20. Qb2 {[%clk 0:02:34.1]} 20...
Nd7 {[%clk 0:01:28.9]} 21. Bb5 {[%clk 0:02:25.3]} 21... Nf6 {[%clk 0:01:28.3]}
22. Bd3 {[%clk 0:02:22.6]} 22... Nd7 {[%clk 0:01:28]} 23. Qb4 {[%clk 0:02:20]}
23... Rb8 {[%clk 0:00:51.1]} 24. Qd6 {[%clk 0:01:59.1]} 24... Ba8 {[%clk
0:00:46.9]} 25. Re2 {[%clk 0:01:46.6]} 25... Re8 {[%clk 0:00:28.2]} 26. Bb5
{[%clk 0:01:45]} 26... Nf6 {[%clk 0:00:27.8]} 27. Qf4 {[%clk 0:01:25.9]} 27...
Re7 {[%clk 0:00:24.7]} 28. Rd1 {[%clk 0:01:16]} 28... Qc7 {[%clk 0:00:22.1]} 29.
Ne5 {[%clk 0:01:14]} 29... Rc8 {[%clk 0:00:18.8]} 30. g4 {[%clk 0:01:12]} 30...
Qc3 {[%clk 0:00:11.1]} 31. h4 {[%clk 0:01:00.9]} 31... Qh3 {[%clk 0:00:07.9]}
32. h5 {[%clk 0:00:37.2]} 32... Rc3 {[%clk 0:00:04.8]} 33. Bd3 {[%clk
0:00:35.2]} 33... b5 {[%clk 0:00:04.3]} 34. Re3 {[%clk 0:00:34.8]} 34... Qh4
{[%clk 0:00:04.7]} 35. Rg3 {[%clk 0:00:28.3]} 35... Nxh5 {[%clk 0:00:04.6]} 36.
Nf3 {[%clk 0:00:13.4]} 36... Nxf4 {[%clk 0:00:03]} 37. Nxh4 {[%clk 0:00:14.1]}
37... Nxd3 {[%clk 0:00:03.2]} 38. Rgxd3 {[%clk 0:00:14.8]} 38... Rxd3 {[%clk
0:00:03.6]} 39. Rxd3 {[%clk 0:00:15.7]} 39... Bxe4 {[%clk 0:00:04.3]} 40. Rb3
{[%clk 0:00:16.3]} 40... Rb7 {[%clk 0:00:03.8]} 41. f3 {[%clk 0:00:14.8]} 41...
Bd5 {[%clk 0:00:04.3]} 42. Rb4 {[%clk 0:00:15.2]} 42... g5 {[%clk 0:00:04.4]}
43. Ng2 {[%clk 0:00:14.3]} 43... Bxf3 {[%clk 0:00:04.8]} 44. Ne3 {[%clk
0:00:15.2]} 44... Be4 {[%clk 0:00:04.8]} 45. Kf2 {[%clk 0:00:15.6]} 45... Kf8
{[%clk 0:00:05.1]} 46. Nd1 {[%clk 0:00:14.2]} 46... Ke7 {[%clk 0:00:05.5]} 47.
Nc3 {[%clk 0:00:14.6]} 47... Bc6 {[%clk 0:00:05.9]} 48. Ke3 {[%clk 0:00:15.2]}
48... Kd6 {[%clk 0:00:06.4]} 49. Ne2 {[%clk 0:00:14.1]} 49... f5 {[%clk
0:00:06.8]} 50. gxf5 {[%clk 0:00:13.2]} 50... exf5 {[%clk 0:00:07.2]} 51. Nc3
{[%clk 0:00:12.3]} 51... f4+ {[%clk 0:00:07.6]} 52. Kf2 {[%clk 0:00:12.1]} 52...
g4 {[%clk 0:00:07.8]} 53. d5 {[%clk 0:00:12.8]} 53... Bxd5 {[%clk 0:00:07.1]}
54. Rd4 {[%clk 0:00:12.7]} 54... b4 {[%clk 0:00:04.2]} 55. Nxd5 {[%clk
0:00:12.6]} 55... Kc5 {[%clk 0:00:04.8]} 56. Rd1 {[%clk 0:00:12.2]} 56... Rd7
{[%clk 0:00:04.9]} 57. Rc1+ {[%clk 0:00:06.9]} 57... Kxd5 {[%clk 0:00:04.9]} 58.
Rd1+ {[%clk 0:00:07.3]} 58... Kc6 {[%clk 0:00:05.1]} 59. Rc1+ {[%clk 0:00:07.5]}
59... Kb5 {[%clk 0:00:05.4]} 60. Rb1 {[%clk 0:00:07.8]} 60... Ka4 {[%clk
0:00:05.6]} 61. Ke2 {[%clk 0:00:08.6]} 61... b3 {[%clk 0:00:05.8]} 62. Ra1+
{[%clk 0:00:09.5]} 62... Kb4 {[%clk 0:00:06.2]} 63. Rb1 {[%clk 0:00:10.4]} 63...
Ka3 {[%clk 0:00:06.4]} 64. Ra1+ {[%clk 0:00:10.6]} 64... Kb2 {[%clk 0:00:06.9]}
65. Rd1 {[%clk 0:00:11.5]} 65... Rxd1 {[%clk 0:00:06.5]} 0-1

[Event "*** Titled Tuesday Blitz"]
[Site "Chess.com"]
[Date "2021.03.02"]
[Round "5"]
[White "Pintacara"]
[Black "Cuajada_Zero"]
[Result "0-1"]
[WhiteElo "2476"]
[BlackElo "2282"]
[TimeControl "180+1"]
[EndTime "10:56:41 PST"]
[Termination "Cuajada_Zero won by checkmate"]

1. d4 {[%clk 0:03:00.9]} 1... d5 {[%clk 0:02:54.7]} 2. Bg5 {[%clk 0:02:56.9]}
2... Nd7 {[%clk 0:02:52.6]} 3. Nc3 {[%clk 0:02:47.4]} 3... c6 {[%clk 0:02:51.2]}
4. e4 {[%clk 0:02:39.7]} 4... dxe4 {[%clk 0:02:50.7]} 5. Nxe4 {[%clk 0:02:40.6]}
5... Ngf6 {[%clk 0:02:48.4]} 6. Qe2 {[%clk 0:02:39]} 6... Nxe4 {[%clk
0:02:42.2]} 7. Qxe4 {[%clk 0:02:39.9]} 7... Nf6 {[%clk 0:02:32.5]} 8. Bxf6
{[%clk 0:02:39.9]} 8... gxf6 {[%clk 0:02:33.4]} 9. O-O-O {[%clk 0:02:39]} 9...
Qa5 {[%clk 0:02:31.9]} 10. Kb1 {[%clk 0:02:30.5]} 10... Bf5 {[%clk 0:02:27.3]}
11. Qe3 {[%clk 0:02:23.1]} 11... e6 {[%clk 0:02:19.8]} 12. Bd3 {[%clk
0:02:15.2]} 12... Bd6 {[%clk 0:01:59.4]} 13. Ne2 {[%clk 0:02:09.2]} 13... O-O-O
{[%clk 0:01:56.6]} 14. f3 {[%clk 0:02:05.9]} 14... Kb8 {[%clk 0:01:55.5]} 15. h4
{[%clk 0:01:59.5]} 15... h5 {[%clk 0:01:23.3]} 16. Rdg1 {[%clk 0:01:52.2]} 16...
Rdg8 {[%clk 0:01:20.1]} 17. Nc3 {[%clk 0:01:41]} 17... Bxd3 {[%clk 0:01:05]} 18.
Qxd3 {[%clk 0:01:41.9]} 18... f5 {[%clk 0:00:52]} 19. Nd1 {[%clk 0:01:14.8]}
19... Rg3 {[%clk 0:00:48.3]} 20. Ne3 {[%clk 0:01:03.4]} 20... Rhg8 {[%clk
0:00:47.1]} 21. Rd1 {[%clk 0:00:53.1]} 21... Bf4 {[%clk 0:00:43.7]} 22. Rhe1
{[%clk 0:00:46.9]} 22... Bxe3 {[%clk 0:00:41.1]} 23. Qxe3 {[%clk 0:00:47.8]}
23... Rxg2 {[%clk 0:00:36.8]} 24. Re2 {[%clk 0:00:46.9]} 24... Rxe2 {[%clk
0:00:22.2]} 25. Qxe2 {[%clk 0:00:47.8]} 25... a6 {[%clk 0:00:21.1]} 26. f4
{[%clk 0:00:45.6]} 26... Qd5 {[%clk 0:00:20.6]} 27. Qxh5 {[%clk 0:00:42.7]}
27... Rg2 {[%clk 0:00:19.2]} 28. Qh8+ {[%clk 0:00:36.9]} 28... Ka7 {[%clk
0:00:18.2]} 29. Qe5 {[%clk 0:00:26.1]} 29... Qxe5 {[%clk 0:00:15.9]} 30. dxe5
{[%clk 0:00:26.2]} 30... Rh2 {[%clk 0:00:16.3]} 31. h5 {[%clk 0:00:20]} 31...
Rxh5 {[%clk 0:00:16]} 32. b4 {[%clk 0:00:20.7]} 32... Rh4 {[%clk 0:00:15]} 33.
Rd4 {[%clk 0:00:21.2]} 33... Kb6 {[%clk 0:00:14.7]} 34. a3 {[%clk 0:00:19]}
34... Kc7 {[%clk 0:00:14.5]} 35. Kb2 {[%clk 0:00:18.2]} 35... Rh3 {[%clk
0:00:13.5]} 36. c4 {[%clk 0:00:17.2]} 36... Rf3 {[%clk 0:00:13.6]} 37. c5 {[%clk
0:00:16.6]} 37... b6 {[%clk 0:00:13.2]} 38. cxb6+ {[%clk 0:00:15.6]} 38... Kxb6
{[%clk 0:00:14.1]} 39. a4 {[%clk 0:00:13.5]} 39... a5 {[%clk 0:00:14.2]} 40.
bxa5+ {[%clk 0:00:10.8]} 40... Kxa5 {[%clk 0:00:15.1]} 41. Rd7 {[%clk
0:00:11.2]} 41... Rxf4 {[%clk 0:00:14.2]} 42. Rxf7 {[%clk 0:00:11.5]} 42... Re4
{[%clk 0:00:14.4]} 43. Rc7 {[%clk 0:00:09.3]} 43... Kxa4 {[%clk 0:00:13.9]} 44.
Rxc6 {[%clk 0:00:09.1]} 44... Rxe5 {[%clk 0:00:14.5]} 45. Kc3 {[%clk 0:00:09.5]}
45... Kb5 {[%clk 0:00:14.7]} 46. Rd6 {[%clk 0:00:08.8]} 46... Re4 {[%clk
0:00:14.7]} 47. Rd8 {[%clk 0:00:08.5]} 47... Kc5 {[%clk 0:00:15.1]} 48. Rc8+
{[%clk 0:00:08.1]} 48... Kd6 {[%clk 0:00:15.1]} 49. Kd3 {[%clk 0:00:09]} 49...
Ke5 {[%clk 0:00:15]} 50. Rc5+ {[%clk 0:00:08.5]} 50... Kf6 {[%clk 0:00:14.9]}
51. Rc8 {[%clk 0:00:09.4]} 51... Ra4 {[%clk 0:00:15]} 52. Rf8+ {[%clk
0:00:08.8]} 52... Ke5 {[%clk 0:00:14.9]} 53. Rb8 {[%clk 0:00:08.4]} 53... Ra3+
{[%clk 0:00:15.3]} 54. Ke2 {[%clk 0:00:07.3]} 54... Rh3 {[%clk 0:00:15.8]} 55.
Rb4 {[%clk 0:00:06.1]} 55... Kf6 {[%clk 0:00:15.7]} 56. Rb6 {[%clk 0:00:05.7]}
56... Ke5 {[%clk 0:00:15.4]} 57. Rb4 {[%clk 0:00:04.8]} 57... f4 {[%clk
0:00:15.1]} 58. Kf2 {[%clk 0:00:04.8]} 58... Kf5 {[%clk 0:00:15.1]} 59. Rb8
{[%clk 0:00:04.2]} 59... e5 {[%clk 0:00:15.2]} 60. Rf8+ {[%clk 0:00:04.1]} 60...
Ke4 {[%clk 0:00:15.5]} 61. Ra8 {[%clk 0:00:05]} 61... Rh2+ {[%clk 0:00:15.7]}
62. Kg1 {[%clk 0:00:04.4]} 62... Rb2 {[%clk 0:00:16.3]} 63. Kf1 {[%clk
0:00:04.3]} 63... Kf3 {[%clk 0:00:15.3]} 64. Ke1 {[%clk 0:00:03.9]} 64... e4
{[%clk 0:00:15]} 65. Rh8 {[%clk 0:00:04.2]} 65... Ke3 {[%clk 0:00:14]} 66. Ra8
{[%clk 0:00:03.8]} 66... Rb1# {[%clk 0:00:13.6]} 0-1